Cogmind - Beta 16.1 @@@ ROGUE MODE // 2026.04.26 @ 23:50:18 Player: Bereft Result: Destroyed by G-47 Trooper with Particle Gun Performance ------------- Evolutions (2) 1000 Regions Visited (3) 600 Robots Destroyed (28) 140 Value Destroyed (849) 849 Prototype IDs (3) 60 Alien Tech Used (0) 0 Bonus (0) 0 TOTAL SCORE: 2649 Bonus ------- None Cogmind --------- Core Integrity 0/550 Matter 280/300 Energy 100/100 System Corruption 13% Temperature Cool (10) Movement Flying (40) Location -8/Materials Parts ------- > --- POWER (1) -------- (None) > --- PROPULSION (2) --- Improved Flight Unit > --- UTILITY (6) ------ (None) > --- WEAPON (2) ------- (None) > --- INVENTORY (5) ---- Improved Deuterium Engine Compact Battery (200) Terrain Scan Processor Advanced Targeting Computer Tractor Beam Peak State ------------ > --- POWER ------------ Improved Deuterium Engine > --- PROPULSION ------- Aluminum Leg Improved Carbon-fiber Leg > --- UTILITY ---------- Heat Sink Medium Storage Unit Weight Redist. System Advanced Visual Processing Unit Improved Terrain Scanner Core Shielding > --- WEAPON ----------- Shock Rifle Heavy Assault Rifle > --- INVENTORY -------- Improved Deuterium Engine Compact Battery Compact Battery High-capacity Matter Pod Terrain Scan Processor Advanced Targeting Computer Advanced Targeting Computer Reaction Control System Light Armor Plating Tractor Beam [Rating: 27] Favorites ----------- Power Ion Engine Engine Ion Engine Propulsion Aluminum Leg Leg Aluminum Leg Flight Unit Improved Flight Unit Utility Core Shielding Device Heat Sink Storage Medium Storage Unit Processor Visual Processing Unit Protection Core Shielding Weapon Small Laser Energy Gun Small Laser Ballistic Gun Heavy Assault Rifle Build | -11 -10 -9 -8 ------- Run | Yrd Mat Mat Mat Slots Evolved 4 | . . 2 2 Power . | . . . . Propulsion . | . . . . Utility 4 | . . 2 2 Weapon . | . . . . Parts Attached 38 | 5 6 11 16 Power 4 | 1 1 . 2 Engine 4 | 1 1 . 2 Core . | . . . . Reactor . | . . . . Propulsion 9 | 2 2 3 2 Treads . | . . . . Leg 8 | 2 2 3 1 Wheel . | . . . . Hover . | . . . . Flight 1 | . . . 1 Utility 14 | 1 2 5 6 Device 6 | . 1 3 2 Storage 2 | 1 1 . . Processor 2 | . . . 2 Hackware . | . . . . Protection 4 | . . 2 2 Artifact . | . . . . Weapon 11 | 1 1 3 6 Energy Gun 7 | 1 1 2 3 Energy Cannon . | . . . . Ballistic Gun 4 | . . 1 3 Ballistic Cannon . | . . . . Launcher . | . . . . Special Weapon . | . . . . Impact Weapon . | . . . . Slashing Weapon . | . . . . Piercing Weapon . | . . . . Special Melee Weapon . | . . . . Unidentified Prototypes 1 | . . . 1 Corrupted Parts 4 | . . . 4 System Corruption 13 | . . . 13 Parts Lost 14 | . 1 2 11 Power 2 | . 1 . 1 Propulsion 3 | . . . 3 Utility 4 | . . 2 2 Weapon 5 | . . . 5 Highest Loss Streak 7 | . 1 1 7 To Critical Strikes 1 | . . . 1 Average Backups 6 | . 1 8 8 Power . | . . . . Propulsion . | . . . . Utility 5 | . 1 5 7 Weapon 1 | . . 2 . Tool/Special . | . . . . Unused Backups 11 | . . 1 10 Power 1 | . . . 1 Propulsion . | . . . . Utility 9 | . . . 9 Weapon 1 | . . 1 . Tool/Special . | . . . . Average Slot Usage (%) 89 | . 84 93 86 Engine 9 | . 11 11 7 Leg 20 | . 28 22 15 Device 15 | . 14 9 24 Storage 10 | . 14 11 8 Processor 3 | . . . 8 Protection 12 | . . 21 8 Energy Gun 14 | . 15 14 13 Ballistic Gun 2 | . . 3 1 Peak Build Rating 27 | 5 7 12 27 Average Rating 12 | 4 5 10 20 On Entrance 5 | . 5 7 11 Avg Prop Armor Cover (%) . | . . . . Naked Turns 44 | . . . 44 Heaviest Build 29 | 11 18 22 29 Greatest Support 34 | 20 20 23 34 Greatest Overweight (x) 3 | . . 1 3 Average Overweight (x) . | . . . . Largest Inventory Capacity 10 | 8 10 10 10 Average Capacity 9 | 7 9 10 9 Most Carried 10 | 2 4 10 10 Average Carried 6 | . 1 8 8 Final Capacity 10 | 8 10 10 5 Final Carried 10 | 2 4 10 5 Class Distribution -------------------- 55% | Scavenger-Mutant 44% | Mutant Dominant Class ---------------- Mutant | -10/Materials Scavenger-Mutant | -9/Materials Mutant | -8/Materials Resources | -11 -10 -9 -8 ----------- Run | Yrd Mat Mat Mat Matter Collected 912 | 250 55 434 173 Remotely . | . . . . Salvage Created 1266 | 121 322 477 346 Parts 73 | 6 20 25 22 Haulers Intercepted 1 | . 1 . . Recyclers Shooed 1 | 1 . . . Parts Field Recycled . | . . . . Retrieved Matter . | . . . . Parts Self-Destructed . | . . . . Prevented . | . . . . Parts Restored . | . . . . Kills | -11 -10 -9 -8 ------- Run | Yrd Mat Mat Mat Combat Hostiles Destroyed 22 | . 8 10 4 Guns 20 | . 7 10 3 Classes Destroyed 8 | 2 4 1 1 Worker 1 | . 1 . . Tunneler 2 | 2 . . . Hauler 1 | . 1 . . Recycler 2 | 1 . . 1 Swarmer 3 | . 3 . . Grunt 12 | . 5 7 . Sentry 5 | . . 3 2 Specialist 2 | . . . 2 Best Kill Streak 3 | 2 3 2 2 Combat Bots Only 3 | . 3 2 2 Max Kills in Single Turn 1 | 1 1 1 1 Gunslinging . | . . . . Exploded . | . . . . Melee . | . . . . Uniques/NPCs Destroyed . | . . . . Combat | -11 -10 -9 -8 -------- Run | Yrd Mat Mat Mat Hostile Shots Fired 253 | . 68 80 105 Missed 75 | . 24 25 26 Hits 178 | . 44 55 79 Projectile 178 | . 44 55 79 Critical Strikes 4 | . . 1 3 Actively Blocked 1 | . . 1 . Damage Taken 2573 | . 449 726 1398 Core 920 | . 166 198 556 Absorbed by Shields . | . . . . Redirected to Shielding 93 | . . 41 52 Core Remaining (%) 61 | 100 33 50 . Volleys Fired 172 | 17 74 56 25 Largest 2 | 1 2 2 2 Hottest 100 | 40 80 96 100 Shots Fired 227 | 17 78 89 43 Gun 227 | 17 78 89 43 Cannon . | . . . . Launcher . | . . . . Special . | . . . . Kinetic 36 | . . 22 14 Thermal 162 | 17 78 67 . Explosive . | . . . . Electromagnetic 29 | . . . 29 Robot Hit Streak 22 | 3 22 11 11 Robot Miss Streak 4 | 3 3 4 4 Penetration Max . | . . . . Secondary Targets . | . . . . Shots Hit Robots 150 | 8 54 60 28 Core Hits 51 | 4 15 21 11 Critical Kills . | . . . . Critical Parts Destroyed . | . . . . Critical Strikes 2 | . . . 2 Corrupt 2 | . . . 2 Melee Attacks . | . . . . Impact . | . . . . Slashing . | . . . . Piercing . | . . . . Sneak Attacks . | . . . . Combat Hostiles . | . . . . Follow-up Attacks . | . . . . Damage Inflicted 1845 | 111 578 741 415 Guns 1834 | 111 578 741 404 Cannons . | . . . . Explosions . | . . . . Melee . | . . . . Ramming 11 | . . . 11 Kinetic 261 | . . 182 79 Thermal 1248 | 111 578 559 . Explosive . | . . . . Electromagnetic 325 | . . . 325 Impact . | . . . . Slashing . | . . . . Piercing . | . . . . Highest Corruption 13 | . . . 13 Average Corruption 10 | . . . 10 Corruption Purged . | . . . . Corruption Blocked . | . . . . Effects 7 | . . . 7 Message Errors 2 | . . . 2 Matter Fused 1 | . . . 1 Heat Flow Errors 1 | . . . 1 Energy Discharges 1 | . . . 1 Data Loss (major) 1 | . . . 1 Alerts 1 | . . . 1 Overload Shots . | . . . . Overflow Damage . | . . . . Projectiles . | . . . . Explosions . | . . . . Melee . | . . . . Knockbacks . | . . . . Impact . | . . . . Kinetic . | . . . . Secondary . | . . . . Self-Inflicted Damage 5 | . . . 5 Shots . | . . . . Rammed 2 | . . . 2 Targets Rammed 2 | . . . 2 Kicked . | . . . . Crushed . | . . . . Highest Temperature 473 | . 91 473 190 Average Temperature 103 | . 46 177 34 Received Heat Transfer 912 | . 210 297 405 Effects 6 | . . 6 . Shutdowns 2 | . . 2 . Energy Bleed 1 | . . 1 . Interference 2 | . . 2 . Matter Decay 1 | . . 1 . Siege Activations . | . . . . Martial Activations . | . . . . Shielding Activations . | . . . . Robots Disrupted . | . . . . Combat Hostiles . | . . . . Robots Corrupted 1 | . . . 1 Combat Hostiles 1 | . . . 1 Parts Fried 5 | . . . 5 Impact Corruptions . | . . . . Robots Melted 1 | . 1 . . Combat Hostiles 1 | . 1 . . Parts Melted 8 | . 5 3 . Heat Transferred 2882 | 250 1325 1307 . Parts Sabotaged . | . . . . Parts Stolen . | . . . . Parts Stripped . | . . . . Power Chain Reactions . | . . . . Alert | -11 -10 -9 -8 ------- Run | Yrd Mat Mat Mat Maximum Alert Level . | . . . . Low Security (%) 100 | 100 100 100 100 Level 1 . | . . . . Level 2 . | . . . . Level 3 . | . . . . Level 4 . | . . . . Level 5 . | . . . . High Security . | . . . . Max Security . | . . . . Peak Influence 88 | 5 80 88 50 Initial 33 | . . 21 33 Average 22 | . 40 25 12 Influence Increases 735 | 15 192 311 217 Destroy 0b10 Robot/C 440 | . 160 200 80 Destroy 0b10 Robot/NC 30 | 15 10 . 5 Destroy Leader 102 | . 22 50 30 Successful Hack 28 | . . 16 12 Disable Machine 30 | . . . 30 Lose Combat Pursuer 105 | . . 45 60 Influence Decreases 706 | 15 140 283 268 Entered New Map 78 | . . 31 47 Time Decay 553 | 15 130 242 166 Lost Part 75 | . 10 10 55 Squads Dispatched 7 | . 1 1 5 Investigation 2 | . 1 1 . Extermination . | . . . . Reinforcement 5 | . . . 5 Assault . | . . . . Garrison . | . . . . Intercept . | . . . . Searches Triggered . | . . . . Construction Impeded . | . . . . Haulers Reinforced . | . . . . Active Scanning Responses . | . . . . Cargo Convoy Interrupts . | . . . . Stealth | -11 -10 -9 -8 --------- Run | Yrd Mat Mat Mat Distress Signals 1 | . 1 . . Communications Jammed . | . . . . Distress Signals . | . . . . Times Spotted 43 | . 9 15 19 Peak Tracking Total 9 | . 5 3 9 Tactical Retreats 6 | . . 3 3 Traps | -11 -10 -9 -8 ------- Run | Yrd Mat Mat Mat Traps Triggered 1 | . 1 . . Indirectly . | . . . . Trap Hack Attempts . | . . . . Triggered . | . . . . Disarmed . | . . . . Reprogrammed . | . . . . Reused . | . . . . Traps Extracted . | . . . . Installed . | . . . . Triggered . | . . . . Machines | -11 -10 -9 -8 ---------- Run | Yrd Mat Mat Mat Machines Disabled 2 | . . . 2 Max in Single Turn 1 | . . . 1 Machines Repaired . | . . . . Machines Dismantled . | . . . . Machines Sabotaged . | . . . . Overloaded Fab Kills . | . . . . Hacking | -11 -10 -9 -8 --------- Run | Yrd Mat Mat Mat Machines Accessed 9 | . . 7 2 Terminals 7 | . . 6 1 Fabricators . | . . . . Repair Stations . | . . . . Recycling Units 1 | . . . 1 Scanalyzers 1 | . . 1 . Garrison Access . | . . . . Total Hacks 20 | . . 16 4 Successful 14 | . . 12 2 Failed 6 | . . 4 2 Catastrophic . | . . . . Database Lockouts . | . . . . Manual 9 | . . 6 3 Terminals 15 | . . 13 2 Fabricators . | . . . . Repair Stations . | . . . . Recycling Units 2 | . . . 2 Scanalyzers 3 | . . 3 . Garrison Access . | . . . . Terminal Hacks 5 | . . 5 . Prototype ID Bank 1 | . . 1 . Branch Access Points 1 | . . 1 . Emergency Access Points 1 | . . 1 . Hauler Manifests 1 | . . 1 . Zone Layout 1 | . . 1 . Fabricator Hacks . | . . . . Repair Station Hacks . | . . . . Recycling Unit Hacks . | . . . . Scanalyzer 2 | . . 2 . Insert Component 1 | . . 1 . Retrieve Study 1 | . . 1 . Garrison Access Hacks . | . . . . Unauthorized Hacks 7 | . . 5 2 Terminals 6 | . . 5 1 Track 5 | . . 4 1 Assimilate 1 | . . 1 . Fabricators . | . . . . Repair Stations . | . . . . Recycling Units 1 | . . . 1 Reject 1 | . . . 1 Scanalyzers . | . . . . Garrison Access . | . . . . Data Cores Recovered . | . . . . Used . | . . . . Hacking Detections 5 | . . 3 2 Full Trace Events 2 | . . 2 . Feedback Events . | . . . . Feedback Blocked . | . . . . Robot Schematics Acquired . | . . . . Robots Built . | . . . . Authchips . | . . . . Time . | . . . . Total Robot Build Rating . | . . . . Part Schematics Acquired . | . . . . Parts Built . | . . . . Authchips . | . . . . Time . | . . . . Total Part Build Rating . | . . . . Part Studies Acquired 1 | . . 1 . Parts Repaired . | . . . . Time . | . . . . Parts Recycled . | . . . . Recycled Matter . | . . . . Retrieved Matter . | . . . . Retrieved Components . | . . . . Parts Scanalyzed . | . . . . Part Schematics Acquired . | . . . . Parts Damaged . | . . . . Bothacking | -11 -10 -9 -8 ------------ Run | Yrd Mat Mat Mat Used RIF Installer . | . . . . Robots Hacked . | . . . . Non-combat . | . . . . Combat . | . . . . Robot Hacks Applied . | . . . . Relay Couplers Released . | . . . . Fabnet Peak Effective % . | . . . . Robots Rewired . | . . . . Allies Hacked . | . . . . Hacks Repelled . | . . . . Allies | -11 -10 -9 -8 -------- Run | Yrd Mat Mat Mat Total Allies . | . . . . Largest Group . | . . . . Highest-Rated Group . | . . . . Highest-Rated Ally . | . . . . Total Orders . | . . . . Ally Attacks . | . . . . Total Damage . | . . . . Kills . | . . . . Allies Corrupted . | . . . . Allies Melted . | . . . . Intel | -11 -10 -9 -8 ------- Run | Yrd Mat Mat Mat Active Infowar (turns) 1239 | . 356 298 585 Optics 585 | . . . 585 Terrain 5 | . . . 5 Seismic 654 | . 356 298 . Robot Analysis Total . | . . . . Derelict Logs Recovered . | . . . . Drone Launches . | . . . . Drone Recoveries . | . . . . Exploration | -11 -10 -9 -8 ------------- Run | Yrd Mat Mat Mat Turns Passed 1897 | 112 356 745 684 Spaces Moved 929 | 61 160 405 303 Core 94 | 5 . . 89 Treads . | . . . . Legs 816 | 56 160 405 195 Wheels . | . . . . Hover . | . . . . Flight 19 | . . . 19 Fastest Speed 40 | 50 120 120 40 Average Speed 116 | 114 120 130 97 Slowest Speed 200 | 120 120 190 200 Overloaded Moves . | . . . . Propulsion Burnouts . | . . . . Robots Hopped 3 | . . . 3 Potential Cave-ins . | . . . . Cave-ins Triggered . | . . . . Exploration Rate (%) 21 | 4 21 41 20 Regions Visited 3 Branch Regions . Pre-discovered Areas . | . . . . Known Exits Taken . | . . . . Unknown Exits Taken 3 | 1 1 1 . Scrap Searched . | . . . . Spaces Dug . | . . . . Terrain Destroyed . | . . . . Melee . | . . . . Projectile . | . . . . AOE . | . . . . Terrain Rammed . | . . . . Walls Destroyed . | . . . . Machines Disabled . | . . . . Actions | -11 -10 -9 -8 --------- Run | Yrd Mat Mat Mat Total 1507 | 84 245 533 645 Wait 310 | . . 37 273 Move 921 | 60 159 404 298 Hop 2 | . . . 2 Pick Up 26 | 2 3 11 10 Fast Attach 20 | 5 2 3 10 Attach 13 | . 1 5 7 Detach 3 | . . 1 2 Swap 13 | . 3 7 3 Drop 25 | . 3 9 13 Fire 172 | 17 74 56 25 Melee . | . . . . Ram 2 | . . . 2 Kick . | . . . . Crush . | . . . . Escape Stasis . | . . . . Rewire . | . . . . Trap . | . . . . Miscellaneous . | . . . . Route ------- -11/Scrapyard -10/Materials -9/Materials (discovered 3 exits: *Mat / *Min x2) -8/Materials History --------- Turn | Location | Event 3 | -11/Scrapyard | Discovered new exit (range 15) 113 | -11/Scrapyard | Entered Materials 317 | -10/Materials | Build established: Mutant 358 | -10/Materials | Core integrity fell below 50% 451 | -10/Materials | Discovered new exit (range 16) 469 | -10/Materials | Entered another Materials area 469 | -9/Materials | Evolved 2 slots: Utility x2 692 | -9/Materials | Build established: Scavenger-Mutant 983 | -9/Materials | Discovered new exit (range 16) 988 | -9/Materials | Identified exit to Mines 1203 | -9/Materials | Discovered new exit (range 10) 1214 | -9/Materials | Entered another Materials area 1214 | -8/Materials | Evolved 2 slots: Utility x2 1519 | -8/Materials | Build established: Mutant 1735 | -8/Materials | Lost 4 parts (1p1n2w) 1759 | -8/Materials | System corruption reached 10% 1822 | -8/Materials | Released all parts (5) 1824 | -8/Materials | Core integrity fell below 50% 1851 | -8/Materials | Lost 7 parts (2n2u3w) 1863 | -8/Materials | Core integrity fell below 20% 1898 | -8/Materials | Destroyed by G-47 Trooper with Particle Gun Last Messages --------------- Slammed into G-47 Trooper. Penetrated by Slug. Slammed into U-05 Engineer. Slug penetrates Wall. System corrupted: Matter fused (-5). Penetrated by Slug. K-01 Serf destroyed. Extracted 13 matter. O-24 Administrator: "IFF HANDSHAKE FAILED. SECURING TERMINAL." ALERT: Hostiles spotted, dispatching reinforcements to Terminal M002. VC CH1EUKZYZGWF6 QK HEZ Acquired Reactive Plating. Acquired Prototype Flight Unit. Identified Imp. Flight Unit. Dropped Reactive Plating. System corrupted: Substantial component data lost. Scanalyzer disabled. Map ----- +----------------------------------------------------+ | !!##??????????????????????????????###??????????? | | % #????????????????????????????? ??????????? | | ##??????????????????????#####? ???????????? | | #??????????????????????? #? ????????????? | | #??????????????????????? # ?????????????? | | #??????????????????????? # ??????????????? | | #####???????????????????????# + ???????????????? | | ????????????????????????????# #????????????????? | | ????????????????????????????# #????????????????? | | ############################# #####+######?????? | | ?????? | | ?????? | | ?????? | | ###########+################# #########????????? | | #???????????????????????# # #????????? | | #???????????????????????# # #????????? | | = #???????????????????????# + !!! #????????? | | #???????????????????????# # !!! #????????? | | #???????????????????????# # !!! #????????? | | ! #???????????????????????# # #????????? | | #??????????############## # ! #????????? | | T"" #??????????# "" == # # """ #????????? | | """ #??????????# g"S = """ # # """ #????????? | | #####??????????#Y"" """ + # """ #????????? | | ???????????????# Y g """ # / #????????? | | ???????????????# g @ # #### ####????????? | | ???????????????############ # #???##???????????? | | ??????????????????????????### ###??????????????? | | ???????????????????????????# #??????????????? | | ???????????????????????????#!![[||#??????????????? | | ???????????????????????????#!![[||#??????????????? | | ???????????????????????????########??????????????? | | ?????????????????????????????????????????????????? | | ?????????????????????????????????????????????????? | | ?????????????????????????????????????????????????? | | ?????????????????????????????????????????????????? | | ?????????????????????????????????????????????????? | | ?????????????????????????????????????????????????? | | ?????????????????????????????????????????????????? | | ?????????????????????????????????????????????????? | | ?????????????????????????????????????????????????? | | | | | | | | | | | | | | | | | | | +----------------------------------------------------+ Best States ------------- Heat Dissipation 41 Energy Generation 16 Energy Capacity 290 Matter Stores 300 Matter Capacity 300 Sight Range 20 Terrain Scan Range 16 Terrain Scan Density 10 Additional Mass Support 6 Armor Coverage 150 Resistance: KI 20 Core Shielding 20 Evasion (%) 62 Item Schematics ----------------- None Robot Schematics ------------------ None Fabricated ------------ Nothing Repaired ---------- Nothing Studied --------- Hvy. Assault Rifle | -9/Materials | Hacked Alien Tech Used ----------------- None Achievements -------------- None Challenges ------------ None Game ------ Seed NovaVampiricRecalibrator Manual? 0 Play Time 00:24:58 Cumulative 30.7 hours Start 2026.04.26 @ 23:25:28 End 2026.04.26 @ 23:50:18 Sessions 1 Manual Loads 0 Difficulty Rogue Special Mode None Game No. 60 Rogue 60 Adventurer 0 Explorer 0 Win Type - Total 0 Types 0/0/0/0/0/0/0/0/0/0 Lore% 24 Gallery% 25 Achievement% 23 Wizard Run 0 Options --------- Layout 1 ASCII 0 Keyboard 0 Movement Mouse Keybinds 0 Fullscreen 1 Font 32/SmallcapsGlow Map View 50x35 Zoom Use 0% Tactical HUD 0 Map Filters NONE Filters NONE Steam 1 RUN: f2f22e4c-cc44-4eab-a4d9-00de62c5b0a9